Cogmind - Beta 13 @@@ ROGUE MODE // 2024.04.20 @ 01:05:02 Player: GregoriusTechneticies Result: Destroyed by S-10 Pest with Light Assault Rifle Performance ------------- Evolutions (2) 1000 Regions Visited (4) 800 Robots Destroyed (47) 235 Value Destroyed (1026) 1026 Prototype IDs (1) 20 Alien Tech Used (0) 0 Bonus (200) 200 TOTAL SCORE: 3281 Bonus ------- Entered Garrisons 200 Cogmind --------- Core Integrity 0/550 Matter 128/300 Energy 94/100 System Corruption 0% Temperature Cool (0) Movement Core (50) Location -8/Garrison Parts ------- > --- POWER (1) -------- (None) > --- PROPULSION (2) --- (None) > --- UTILITY (6) ------ Terrain Scan Processor > --- WEAPON (2) ------- (None) > --- INVENTORY (5) ---- Reinforced Ion Engine Deuterium Engine Large Storage Unit Large Storage Unit Maul Peak State ------------ > --- POWER ------------ Deuterium Engine > --- PROPULSION ------- Wheel > --- UTILITY ---------- High-capacity Storage Unit Structural Scanner Improved Terrain Scanner Terrain Scan Processor Seismic Detector Improved Light Armor Plating > --- WEAPON ----------- Light Cannon Assault Cannon > --- INVENTORY -------- Reinforced Ion Engine Light Deuterium Engine High-capacity Storage Unit High-capacity Storage Unit Medium Matter Pod Sensor Array Improved Propulsion Shielding Light Assault Rifle Light Assault Rifle Shock Bomb Launcher Mining Laser Maul [Rating: 21] Favorites ----------- Power Light Ion Engine Engine Light Ion Engine Power Core Light Nuclear Core Propulsion Wheel Wheel Wheel Utility Seismic Detector Device Seismic Detector Storage Small Storage Unit Processor Terrain Scan Processor Protection Improved Light Armor Plating Weapon Light Assault Rifle Energy Gun Small Laser Energy Cannon EM Pulse Cannon Ballistic Gun Light Assault Rifle Ballistic Cannon Light Cannon Launcher Shock Bomb Launcher Special Weapon Mining Laser Build | -11 -10 -9 -8 -8 ------- Run | Yrd Mat Mat Mat Gar Slots Evolved 4 | . . 2 2 . Power . | . . . . . Propulsion . | . . . . . Utility 4 | . . 2 2 . Weapon . | . . . . . Parts Attached 60 | 9 13 20 15 3 Power 8 | 1 2 1 3 1 Engine 7 | 1 1 1 3 1 Core 1 | . 1 . . . Reactor . | . . . . . Propulsion 13 | 3 4 6 . . Treads . | . . . . . Leg . | . . . . . Wheel 13 | 3 4 6 . . Hover . | . . . . . Flight . | . . . . . Utility 16 | 3 . 5 8 . Device 8 | 2 . 3 3 . Storage 3 | 1 . . 2 . Processor 2 | . . 2 . . Hackware . | . . . . . Protection 3 | . . . 3 . Artifact . | . . . . . Weapon 23 | 2 7 8 4 2 Energy Gun 4 | 1 2 1 . . Energy Cannon 2 | . . . 2 . Ballistic Gun 9 | 1 3 4 . 1 Ballistic Cannon 2 | . . . 2 . Launcher 2 | . . 1 . 1 Special Weapon 4 | . 2 2 . . Impact Weapon . | . . . . . Slashing Weapon . | . . . . . Piercing Weapon . | . . . . . Special Melee Weapon . | . . . . . Unidentified Prototypes 1 | . . 1 . . Parts Lost 17 | . . 4 2 11 Power 2 | . . . . 2 Propulsion 4 | . . 2 1 1 Utility 5 | . . . 1 4 Weapon 6 | . . 2 . 4 Highest Loss Streak 6 | . . 2 2 6 To Critical Strikes . | . . . . . Average Slot Usage (%) 88 | . 99 92 85 66 Engine 8 | . 5 11 9 7 Core 2 | . 9 . . . Wheel 16 | . 28 18 11 2 Device 20 | . 14 21 27 19 Storage 10 | . 14 11 9 9 Processor 7 | . . 10 9 9 Energy Gun 3 | . 10 1 . . Ballistic Gun 10 | . 15 14 . 5 Ballistic Cannon 4 | . . . 16 5 Special Weapon 1 | . 1 2 . . Naked Turns . | . . . . . Heaviest Build 63 | 11 15 21 63 43 Greatest Support 20 | 20 20 20 20 10 Greatest Overweight (x) 11 | 3 . 2 6 11 Average Overweight (x) 1 | 1 . . 2 6 Largest Inventory Capacity 20 | 8 8 8 20 15 Average Capacity 9 | 7 8 8 12 14 Most Carried 15 | 8 8 8 15 15 Average Carried 8 | 2 7 7 9 12 Final Capacity 15 | 8 8 8 15 5 Final Carried 15 | 8 8 8 15 5 Class Distribution -------------------- 51% | Scavenger-Mutant 31% | Scavenger-Skirmisher 15% | Mutant Dominant Class ---------------- Scavenger-Mutant | -10/Materials Scavenger-Mutant | -9/Materials Scavenger-Skirmisher | -8/Materials Scavenger-Skirmisher | -8/Garrison Resources | -11 -10 -9 -8 -8 ----------- Run | Yrd Mat Mat Mat Gar Matter Collected 1227 | 263 395 315 127 127 Remotely . | . . . . . Salvage Created 1471 | 195 505 542 161 68 Parts 115 | 16 32 41 18 8 Haulers Intercepted 1 | . . . 1 . Recyclers Shooed 3 | 1 1 1 . . Parts Field Recycled . | . . . . . Retrieved Matter . | . . . . . Parts Self-Destructed . | . . . . . Prevented . | . . . . . Kills | -11 -10 -9 -8 -8 ------- Run | Yrd Mat Mat Mat Gar Combat Hostiles Destroyed 23 | . 6 9 5 3 Guns 13 | . 6 7 . . Cannons 6 | . . . 5 1 AOE 4 | . . 2 . 2 Classes Destroyed 14 | 2 4 4 2 2 Worker 5 | . 4 1 . . Builder 6 | . 1 2 3 . Tunneler 6 | 4 1 1 . . Hauler 1 | . . . 1 . Recycler 3 | 1 1 1 . . Operator 1 | . . 1 . . Watcher 2 | . 2 . . . Swarmer 3 | . . . 3 . Grunt 13 | . 6 6 1 . Brawler 2 | . . 1 1 . Duelist 1 | . . 1 . . Sentry 1 | . . 1 . . Hunter 2 | . . . . 2 Programmer 1 | . . . . 1 Best Kill Streak 5 | 4 5 4 3 2 Combat Bots Only 3 | . 2 2 3 2 Max Kills in Single Turn 1 | 1 1 1 1 1 Gunslinging . | . . . . . Exploded 1 | . . 1 . 1 Melee . | . . . . . Uniques/NPCs Destroyed . | . . . . . Combat | -11 -10 -9 -8 -8 -------- Run | Yrd Mat Mat Mat Gar Hostile Shots Fired 292 | . 62 45 53 132 Missed 84 | . 20 11 18 35 Damage Taken 2682 | . 546 535 407 1194 Core 839 | . 154 131 44 510 Absorbed by Shields 74 | . . . . 74 Core Remaining (%) 68 | 100 38 67 . . Volleys Fired 186 | 23 70 57 20 16 Largest 2 | 2 2 2 2 2 Hottest 100 | 60 100 100 79 79 Shots Fired 337 | 46 134 87 40 30 Gun 256 | 46 130 78 . 2 Cannon 66 | . . . 40 26 Launcher 6 | . . 4 . 2 Special 9 | . 4 5 . . Kinetic 250 | 23 86 73 40 28 Thermal 81 | 23 48 10 . . Explosive 4 | . . 4 . . Electromagnetic 2 | . . . . 2 Robot Hit Streak 11 | 4 9 11 4 5 Robot Miss Streak 6 | 4 6 2 2 6 Penetration Max . | . . . . . Secondary Targets 1 | . 1 . . . Max Gunslinging Chain 1 | . 1 . . . Shots Hit Robots 202 | 24 78 62 24 14 Core Hits 91 | 8 34 33 10 6 Critical Kills 1 | . . 1 . . Critical Parts Destroyed . | . . . . . Critical Strikes 3 | . . 1 2 . Destroy 1 | . . 1 . . Blast 2 | . . . 2 . Melee Attacks . | . . . . . Impact . | . . . . . Slashing . | . . . . . Piercing . | . . . . . Sneak Attacks . | . . . . . Combat Hostiles . | . . . . . Follow-up Attacks . | . . . . . Damage Inflicted 2650 | 250 801 675 516 408 Guns 1571 | 250 801 514 . 6 Cannons 757 | . . . 516 241 Explosions 319 | . . 158 . 161 Melee . | . . . . . Ramming 3 | . . 3 . . Kinetic 1786 | 110 466 447 516 247 Thermal 638 | 140 335 67 . 96 Explosive 158 | . . 158 . . Electromagnetic 65 | . . . . 65 Impact . | . . . . . Slashing . | . . . . . Piercing . | . . . . . Highest Corruption 2 | . . 2 . . Average Corruption 2 | . . 2 . . Corruption Purged . | . . . . . Corruption Blocked . | . . . . . Effects 7 | . . 7 . . Matter Fused 2 | . . 2 . . Heat Flow Errors 1 | . . 1 . . Data Loss (minor) 2 | . . 2 . . Data Loss (major) 1 | . . 1 . . Misfires 1 | . . 1 . . Overload Shots . | . . . . . Overflow Damage 24 | . . . 24 . Projectiles 24 | . . . 24 . Explosions . | . . . . . Melee . | . . . . . Knockbacks 11 | . . . 7 4 Impact . | . . . . . Kinetic 11 | . . . 7 4 Secondary . | . . . . . Self-Inflicted Damage 159 | . . 90 . 69 Shots 7 | . . 4 . 3 Rammed 1 | . . 1 . . Targets Rammed 1 | . . 1 . . Kicked . | . . . . . Crushed . | . . . . . Highest Temperature 330 | 40 330 250 78 81 Average Temperature 50 | 22 77 29 19 42 Received Heat Transfer 741 | . 345 216 180 . Siege Activations . | . . . . . Robots Corrupted . | . . . . . Combat Hostiles . | . . . . . Parts Fried . | . . . . . Impact Corruptions . | . . . . . Robots Melted . | . . . . . Combat Hostiles . | . . . . . Parts Melted . | . . . . . Heat Transferred 1319 | 300 771 148 . 100 Parts Sabotaged . | . . . . . Parts Stolen . | . . . . . Parts Stripped . | . . . . . Power Chain Reactions 1 | . . . . 1 Alert | -11 -10 -9 -8 -8 ------- Run | Yrd Mat Mat Mat Gar Peak Influence 371 | 25 272 184 371 253 Initial 241 | . 16 45 74 241 Average 133 | 14 125 73 214 243 Maximum Alert Level 1 | . 1 . 1 1 Low Security (%) 71 | 100 82 100 50 . Level 1 28 | . 17 . 49 100 Level 2 . | . . . . . Level 3 . | . . . . . Level 4 . | . . . . . Level 5 . | . . . . . High Security . | . . . . . Max Security . | . . . . . Squads Dispatched 7 | . 2 3 2 . Investigation 2 | . 1 1 . . Extermination . | . . . . . Reinforcement 5 | . 1 2 2 . Assault . | . . . . . Garrison . | . . . . . Intercept . | . . . . . Searches Triggered . | . . . . . Construction Impeded 2 | . . 1 1 . Haulers Reinforced . | . . . . . Active Scanning Responses . | . . . . . Cargo Convoy Interrupts . | . . . . . Stealth | -11 -10 -9 -8 -8 --------- Run | Yrd Mat Mat Mat Gar Distress Signals 3 | . 2 . 1 . Communications Jammed . | . . . . . Distress Signals . | . . . . . Times Spotted 50 | . 15 13 14 8 Peak Tracking Total 7 | . 5 5 7 4 Tactical Retreats 4 | . . . 4 . Traps | -11 -10 -9 -8 -8 ------- Run | Yrd Mat Mat Mat Gar Traps Triggered 5 | . . 1 . 4 Indirectly 1 | . . . . 1 Trap Hack Attempts . | . . . . . Triggered . | . . . . . Disarmed . | . . . . . Reprogrammed . | . . . . . Reused . | . . . . . Traps Extracted . | . . . . . Installed . | . . . . . Triggered . | . . . . . Machines | -11 -10 -9 -8 -8 ---------- Run | Yrd Mat Mat Mat Gar Machines Disabled 1 | . . 1 . . Max in Single Turn 1 | . . 1 . . Machines Repaired . | . . . . . Machines Dismantled . | . . . . . Machines Sabotaged . | . . . . . Overloaded Fab Kills . | . . . . . Hacking | -11 -10 -9 -8 -8 --------- Run | Yrd Mat Mat Mat Gar Machines Accessed 8 | . 1 5 2 . Terminals 7 | . 1 5 1 . Fabricators . | . . . . . Repair Stations . | . . . . . Recycling Units . | . . . . . Scanalyzers . | . . . . . Garrison Access 1 | . . . 1 . Total Hacks 30 | . 7 16 7 . Successful 9 | . 2 5 2 . Failed 21 | . 5 11 5 . Catastrophic 2 | . . 2 . . Database Lockouts . | . . . . . Manual 25 | . 7 13 5 . Terminals 28 | . 7 16 5 . Fabricators . | . . . . . Repair Stations . | . . . . . Recycling Units . | . . . . . Scanalyzers . | . . . . . Garrison Access 2 | . . . 2 . Terminal Hacks 2 | . 1 1 . . Robot Analysis 1 | . . 1 . . Terminal Index 1 | . 1 . . . Fabricator Hacks . | . . . . . Repair Station Hacks . | . . . . . Recycling Unit Hacks . | . . . . . Scanalyzer . | . . . . . Garrison Access Hacks 1 | . . . 1 . Unlock Access 1 | . . . 1 . Unauthorized Hacks 6 | . 1 4 1 . Terminals 6 | . 1 4 1 . Botnet 6 | . 1 4 1 . Fabricators . | . . . . . Repair Stations . | . . . . . Recycling Units . | . . . . . Scanalyzers . | . . . . . Garrison Access . | . . . . . Data Cores Recovered . | . . . . . Used . | . . . . . Hacking Detections 8 | . 1 5 2 . Full Trace Events 5 | . 1 3 1 . Feedback Events . | . . . . . Feedback Blocked . | . . . . . Robot Schematics Acquired . | . . . . . Robots Built . | . . . . . Authchips . | . . . . . Time . | . . . . . Total Robot Build Rating . | . . . . . Part Schematics Acquired . | . . . . . Parts Built . | . . . . . Authchips . | . . . . . Time . | . . . . . Total Part Build Rating . | . . . . . Parts Repaired . | . . . . . Time . | . . . . . Parts Recycled . | . . . . . Recycled Matter . | . . . . . Retrieved Matter . | . . . . . Retrieved Components . | . . . . . Parts Scanalyzed . | . . . . . Part Schematics Acquired . | . . . . . Parts Damaged . | . . . . . Bothacking | -11 -10 -9 -8 -8 ------------ Run | Yrd Mat Mat Mat Gar Used RIF Installer . | . . . . . Robots Hacked . | . . . . . Non-combat . | . . . . . Combat . | . . . . . Robot Hacks Applied . | . . . . . Relay Couplers Released 4 | . . . . 4 Programmers 4 | . . . . 4 Fabnet Peak Effective % . | . . . . . Robots Rewired . | . . . . . Allies Hacked . | . . . . . Hacks Repelled . | . . . . . Allies | -11 -10 -9 -8 -8 -------- Run | Yrd Mat Mat Mat Gar Total Allies . | . . . . . Largest Group . | . . . . . Highest-Rated Group . | . . . . . Highest-Rated Ally . | . . . . . Total Orders . | . . . . . Ally Attacks . | . . . . . Total Damage . | . . . . . Kills . | . . . . . Allies Corrupted . | . . . . . Allies Melted . | . . . . . Intel | -11 -10 -9 -8 -8 ------- Run | Yrd Mat Mat Mat Gar Robot Analysis Total 1 | . . 1 . . Derelict Logs Recovered . | . . . . . Drone Launches . | . . . . . Drone Recoveries . | . . . . . Exploration | -11 -10 -9 -8 -8 ------------- Run | Yrd Mat Mat Mat Gar Turns Passed 2033 | 170 428 722 399 314 Spaces Moved 1038 | 69 182 489 228 70 Core 68 | 32 . . . 36 Treads . | . . . . . Legs . | . . . . . Wheels 970 | 37 182 489 228 34 Hover . | . . . . . Flight . | . . . . . Fastest Speed 50 | 50 80 80 80 50 Average Speed 112 | 119 80 86 117 348 Slowest Speed 600 | 200 80 110 170 600 Overloaded Moves . | . . . . . Propulsion Burnouts . | . . . . . Robots Hopped . | . . . . . Cave-ins Triggered . | . . . . . Exploration Rate (%) 20 | 3 22 38 18 23 Regions Visited 4 Branch Regions . Pre-discovered Areas . | . . . . . Known Exits Taken 1 | . . . 1 . Unknown Exits Taken 3 | 1 1 1 . . Scrap Searched . | . . . . . Spaces Dug 9 | . 4 5 . . Terrain Destroyed 44 | . 4 27 4 9 Melee . | . . . . . Projectile 13 | . 4 5 4 . AOE 31 | . . 22 . 9 Terrain Rammed . | . . . . . Walls Destroyed . | . . . . . Machines Disabled . | . . . . . Actions | -11 -10 -9 -8 -8 --------- Run | Yrd Mat Mat Mat Gar Total 1592 | 113 341 704 323 111 Wait 206 | . 54 123 27 2 Move 1034 | 68 181 488 227 70 Hop . | . . . . . Pick Up 43 | 11 8 5 19 . Fast Attach 16 | 6 1 4 5 . Attach 10 | 1 . 3 3 3 Detach . | . . . . . Swap 34 | 2 12 13 7 . Drop 44 | 2 15 10 15 2 Fire 186 | 23 70 57 20 16 Melee . | . . . . . Ram 1 | . . 1 . . Kick . | . . . . . Crush . | . . . . . Escape Stasis 18 | . . . . 18 Rewire . | . . . . . Trap . | . . . . . Miscellaneous . | . . . . . Route ------- -11/Scrapyard -10/Materials (discovered 2 exits: *Mat / [*Min]) -9/Materials -8/Materials -8/Garrison History --------- Turn | Location | Event 3 | -11/Scrapyard | Discovered new exit (range 16) 171 | -11/Scrapyard | Entered Materials 321 | -10/Materials | Discovered new exit (range 12) 584 | -10/Materials | Discovered new exit (range 13) 595 | -10/Materials | Core integrity fell below 50% 599 | -10/Materials | Entered another Materials area 599 | -9/Materials | Evolved 2 slots: Utility x2 612 | -9/Materials | Build established: Scavenger-Mutant 1308 | -9/Materials | Discovered new exit (range 11) 1321 | -9/Materials | Entered another Materials area 1321 | -8/Materials | Evolved 2 slots: Utility x2 1620 | -8/Materials | Build established: Scavenger-Skirmisher 1715 | -8/Materials | Identified exit to Garrison 1720 | -8/Materials | Entered Garrison 1855 | -8/Garrison | Lost 6 parts (1p1n2u2w) 1948 | -8/Garrison | Triggered checkpoint 2004 | -8/Garrison | Triggered checkpoint 2005 | -8/Garrison | Triggered checkpoint 2013 | -8/Garrison | Core integrity fell below 50% 2026 | -8/Garrison | Core integrity fell below 20% 2034 | -8/Garrison | Destroyed by S-10 Pest with Light Assault Rifle Last Messages --------------- 01845_ Stasis Trap short circuited. 01845_ A bubble of rippling energy engulfs the area. 01854_ Acquired 23 matter. 01860_ Acquired 4 matter. 01948_ Beams of light sweep through the air. An alarm sounds. 02004_ Lgt. Assault Rifle destroyed. 02008_ Shock Bomb Launcher destroyed. 02010_ Slug penetrates Wall. 02013_ Penetrated by Slug. 02013_ Lgt. Deuterium Engine destroyed. 02013_ S-10 Pest destroyed. 02016_ Slug penetrates Wall. 02019_ Penetrated by Slug. 02019_ Imp. Terrain Scanner destroyed. 02022_ Penetrated by Slug. 02025_ Structural Scanner destroyed. 02028_ Slug penetrates Wall. 02033_ Dropped Lrg. Storage Unit. Map ----- +----------------------------------------------------+ | ?????????????????????????????????????????????????? | | ##### #??????????????????????????????????????????? | | #??????????????????????????????????????????? | | #???????????????????????????????????????????????? | | #???????????????????????????????????????????????? | | #???????????????????????????????????????????????? | | #???????????????????????????????????????????????? | | ######??????????????????????????????????????????? | | ^" ???????????????????????????????????????????? | | #??????????????????????????????????????????????? | | #????????????######????????????????????????????? | | ==#????????????# #????????????????????????????? | | !#???????###### ######???????????????????????? | | ########## #######?????????????????? | | ! ?????????????????? | | ! ?????????????????? | | ########### ## ## ####????????????????????? | | ??????????# ## ## ###?????????????????????? | | ??????????" #?????????????????????? | | ??????????" = #?????????????????????? | | ??????????" *%=#?????????????????????? | | ??????????" [ #?????????????????????? | | ??????????# ## ## s ###?????????????????????? | | ????????### ## ## s #???????????????????????? | | ??????? ######??????????????????? | | ??????? h !!@ #??????????????????? | | ???????#### |*!#### #??????????????????? | | ??????????## ## ## [##???????????????????????? | | ???????????# ## ?# #????????????????????????? | | ???????????# ?####??# #????????????????????????? | | ???????????#?????????# ^#????????????????????????? | | ?????????????????????# #????????????????????????? | | ?????????????????????# #????????????????????????? | | ?????????????????????# #????????????????????????? | | ?????????????????????# #????????????????????????? | | ?????????????????????# ????????????????????????? | | ?????????????????????# ????????????????????????? | | ?????????????????????####????????????????????????? | | ?????????????????????????????????????????????????? | | ?????????????????????????????????????????????????? | | ?????????????????????????????????????????????????? | | ?????????????????????????????????????????????????? | | ?????????????????????????????????????????????????? | | ?????????????????????????????????????????????????? | | ?????????????????????????????????????????????????? | | ?????????????????????????????????????????????????? | | ?????????????????????????????????????????????????? | | ?????????????????????????????????????????????????? | | ?????????????????????????????????????????????????? | | ?????????????????????????????????????????????????? | +----------------------------------------------------+ Best States ------------- Heat Dissipation 31 Energy Generation 14 Energy Capacity 275 Matter Stores 300 Matter Capacity 300 Sight Range 16 Robot Scan Range 14 Terrain Scan Range 16 Terrain Scan Density 85 Armor Coverage 150 Evasion (%) 50 Item Schematics ----------------- None Robot Schematics ------------------ None Fabricated ------------ Nothing Alien Tech Used ----------------- None Achievements -------------- None Challenges ------------ None Game ------ Seed ShadingDiametricImmobilizer Manual? 0 Play Time 00:27:57 Cumulative 43.0 hours Start 2024.04.20 @ 00:37:56 End 2024.04.20 @ 01:05:02 Sessions 1 Manual Loads 0 Difficulty Rogue Special Mode None Game No. 63 Rogue 48 Adventurer 0 Explorer 15 Win Type - Total 0 Types 0/0/0/0/0/0/0/0/0 Lore% 25 Gallery% 35 Achievement% 26 Wizard Run 0 Options --------- Layout 1 ASCII 0 Keyboard 0 Movement Mouse Keybinds 0 Fullscreen 1 Font 24/Smallcaps Map View 50x35 Zoom Use 0% Tactical HUD 1 Map Filters NONE Filters NONE Steam 1 RUN: 0d131f43-a646-48ce-98d5-eb3d117a19ed